[Event "Hungarian Youth-ch U14 2022"]
[Site "Eger"]
[Date "2022.07.30"]
[Round "8.8"]
[White "Nandin-Erdene, Davaademberel"]
[Black "Szarvas, Nora Orsolya"]
[Result "1-0"]
[ECO "B56"]
[WhiteElo "1789"]
[BlackElo "1692"]
[Annotator "NA RC COMBH"]
[PlyCount "107"]
[EventDate "2022.07.21"]
[EventType "tourn"]
[EventCountry "HUN"]
[SourceTitle "playchess.com"]
[Source "ChessBase"]
[SourceQuality "1"]
[TimeControl "40/5400+30:1800+30"]

1. e4 {[%emt 0:00:33]} c5 {[%emt 0:00:37]} 2. Nf3 {[%emt 0:00:04]} d6 {[%emt 0:00:04]} 3. d4 {[%emt 0:00:05]} cxd4 {[%emt 0:00:04]} 4. Nxd4 {[%emt 0:00:07]} Nf6 {[%emt 0:00:04]} 5. Nc3 {[%emt 0:00:06]} Nc6 {[%emt 0:00:07]} 6. f3 {[%emt 0:00:09]} e5 {[%emt 0:01:51]} 7. Nb3 {[%emt 0:00:08]} Be6 {[%emt 0:01:03]} 8. Nd5 {[%emt 0:00:14]} h6 {[%emt 0:13:00]} 9. Be3 {[%emt 0:00:56]} Rc8 {[%emt 0:03:25]} 10. c3 {[%emt 0:01:19]} Be7 {[%emt 0:17:06]} 11. Qd2 {[%emt 0:01:51]} O-O {[%emt 0:03:34]} 12. Be2 {[%emt 0:01:51]} Bxd5 {[%emt 0:11:00]} 13. exd5 {[%emt 0:00:16]} Na5 {[%emt 0:00:15]} 14. O-O {[%emt 0:08:26]} Nc4 {[%emt 0:04:24]} 15. Bxc4 {[%emt 0:01:06]} Rxc4 {[%emt 0:00:12]} 16. Qd3 {[%emt 0:01:22]} Rc8 {[%emt 0:01:06]} 17. Nd2 {[%emt 0:03:13]} a6 {[%emt 0:01:41]} 18. a4 {[%emt 0:02:09]} Nd7 {[%emt 0:02:45]} 19. a5 {[%emt 0:06:34]} Bg5 {[%emt 0:05:32]} 20. b4 {[%emt 0:13:22]} Bxe3+ {[%emt 0:04:22]} 21. Qxe3 {[%emt 0:00:27]} Qc7 {[%emt 0:01:48]} 22. c4 {[%emt 0:08:18]} b6 {[%emt 0:03:43]} 23. axb6 {[%emt 0:04:52]} Qxb6 {[%emt 0:00:10]} 24. Qxb6 {[%emt 0:01:32]} Nxb6 {[%emt 0:00:26]} 25. Rfc1 {[%emt 0:00:42]} Ra8 {[%emt 0:00:57]} 26. Nb3 {[%emt 0:05:46]} Rfc8 {[%emt 0:04:13]} 27. Na5 {[%emt 0:01:19]} f6 {[%emt 0:01:26]} 28. Nc6 {[%emt 0:01:06]} Kf7 {[%emt 0:00:25]} 29. Kf2 {[%emt 0:02:46]} Rc7 {[%emt 0:02:24]} 30. Ke3 {[%emt 0:01:44]} g5 {[%emt 0:02:13]} 31. g4 {[%emt 0:02:34]} Kg6 {[%emt 0:00:45]} 32. Ke4 {[%emt 0:01:09]} Rd7 {[%emt 0:01:38]} 33. Ra5 {[%emt 0:03:27]} Rb7 {[%emt 0:04:03]} 34. Kd3 {[%emt 0:03:00]} Nd7 {[%emt 0:00:47]} 35. Rca1 {[%emt 0:02:15]} Rb6 {[%emt 0:00:34]} 36. Kc3 {[%emt 0:06:14]} Kf7 {[%emt 0:02:41]} 37. b5 {[%emt 0:08:24]} Nc5 {[%emt 0:00:32]} 38. Nb4 {[%emt 0:00:38]} e4 {[%emt 0:01:57]} 39. fxe4 {[%emt 0:00:31]} Nxe4+ {[%emt 0:00:11]} 40. Kd4 {[%emt 0:00:00]} Nc5 {[%emt 0:00:00]} 41. R1a3 {[%emt 0:04:21]} Re8 {[%emt 0:02:06]} 42. Nxa6 {[%emt 0:04:32]} Re4+ {[%emt 0:01:22]} 43. Kc3 {[%emt 0:00:07]} Re3+ {[%emt 0:00:58]} 44. Kd2 {[%emt 0:01:28]} Re4 {[%emt 0:01:32]} 45. Nxc5 {[%emt 0:00:58]} dxc5 {[%emt 0:00:08]} 46. Ra6 {[%emt 0:00:55]} Rb8 {[%emt 0:00:23]} 47. Ra8 {[%emt 0:00:18]} Rxa8 {[%emt 0:01:40]} 48. Rxa8 {[%emt 0:00:05]} Rxc4 {[%emt 0:00:07]} 49. b6 {[%emt 0:01:18]} Rb4 {[%emt 0:00:32]} 50. Ra7+ {[%emt 0:02:12]} Ke8 {[%emt 0:03:30]} 51. b7 {[%emt 0:00:42]} Kd8 {[%emt 0:00:15]} 52. d6 {[%emt 0:00:18]} Rb6 {[%emt 0:03:26]} 53. Ra8+ {[%emt 0:00:16]} Kd7 {[%emt 0:00:04]} 54. b8=Q {[%emt 0:00:13]} 1-0

[Event "Hungarian Youth-ch U14 2022"]
[Site "Eger"]
[Date "2022.07.30"]
[Round "8.9"]
[White "Karacsonyi, Luca"]
[Black "Eros, Vivien"]
[Result "1-0"]
[ECO "B06"]
[WhiteElo "1789"]
[BlackElo "1599"]
[Annotator "NA RC COMBH"]
[PlyCount "75"]
[EventDate "2022.07.21"]
[EventType "tourn"]
[EventCountry "HUN"]
[SourceTitle "playchess.com"]
[Source "ChessBase"]
[SourceQuality "1"]
[TimeControl "40/5400+30:1800+30"]

1. e4 {[%emt 0:00:33]} g6 {[%emt 0:00:35]} 2. d4 {[%emt 0:00:06]} Bg7 {[%emt 0:00:04]} 3. Nf3 {[%emt 0:00:08]} d6 {[%emt 0:00:09]} 4. Nc3 {[%emt 0:00:20]} a6 {[%emt 0:00:35]} 5. Be3 {[%emt 0:01:21]} b5 {[%emt 0:00:08]} 6. a3 {[%emt 0:00:58]} Bb7 {[%emt 0:00:16]} 7. Bd3 {[%emt 0:02:34]} Nd7 {[%emt 0:00:44]} 8. Qd2 {[%emt 0:03:25]} e6 {[%emt 0:02:26]} 9. O-O {[%emt 0:04:17]} Ne7 {[%emt 0:01:19]} 10. Ng5 {[%emt 0:07:22]} c5 {[%emt 0:09:09]} 11. Be2 {[%emt 0:09:05]} O-O {[%emt 0:05:22]} 12. f4 {[%emt 0:04:11]} Qc7 {[%emt 0:14:59]} 13. Rad1 {[%emt 0:07:40]} Rfd8 {[%emt 0:03:20]} 14. Bf3 {[%emt 0:12:34]} Rac8 {[%emt 0:06:09]} 15. d5 {[%emt 0:02:58]} exd5 {[%emt 0:06:03]} 16. exd5 {[%emt 0:01:28]} Nb6 {[%emt 0:05:55]} 17. Bg4 {[%emt 0:05:11]} Nc4 {[%emt 0:08:08]} 18. Qc1 {[%emt 0:09:32]} Nxe3 {[%emt 0:00:51]} 19. Qxe3 {[%emt 0:00:15]} Bd4 {[%emt 0:00:18]} 20. Rxd4 {[%emt 0:00:10]} cxd4 {[%emt 0:00:03]} 21. Qxd4 {[%emt 0:00:15]} Qc5 {[%emt 0:00:17]} 22. Qxc5 {[%emt 0:00:31]} Rxc5 {[%emt 0:00:04]} 23. Nce4 {[%emt 0:01:09]} Rxc2 {[%emt 0:00:38]} 24. f5 {[%emt 0:03:18]} h6 {[%emt 0:24:47]} 25. fxg6 {[%emt 0:02:58]} Nxg6 {[%emt 0:02:16]} 26. Nxf7 {[%emt 0:00:45]} Rf8 {[%emt 0:01:38]} 27. Be6 {[%emt 0:02:29]} Kg7 {[%emt 0:01:18]} 28. Nexd6 {[%emt 0:03:43]} Ba8 {[%emt 0:00:15]} 29. Nf5+ {[%emt 0:01:49]} Kh7 {[%emt 0:00:20]} 30. Ne3 {[%emt 0:02:47]} Re2 {[%emt 0:01:52]} 31. Ng4 {[%emt 0:03:20]} Ne7 {[%emt 0:03:30]} 32. Nf6+ {[%emt 0:05:06]} Kg6 {[%emt 0:01:13]} 33. Nd7 {[%emt 0:02:49]} Re8 {[%emt 0:00:51]} 34. Rf6+ {[%emt 0:00:12]} Kg7 {[%emt 0:00:31]} 35. Nd6 {[%emt 0:00:29]} Rd8 {[%emt 0:01:22]} 36. Rf7+ {[%emt 0:00:11]} Kg6 {[%emt 0:00:32]} 37. Rxe7 {[%emt 0:00:22]} Bxd5 {[%emt 0:00:16]} 38. Bf5+ {[%emt 0:00:21]} 1-0

[Event "Hungarian Youth-ch U14 2022"]
[Site "Eger"]
[Date "2022.07.30"]
[Round "8.10"]
[White "Horvath, Greta"]
[Black "Beznicza, Mira"]
[Result "0-1"]
[ECO "C11"]
[WhiteElo "1346"]
[BlackElo "1608"]
[Annotator "NA RC COMBH"]
[PlyCount "90"]
[EventDate "2022.07.21"]
[EventType "tourn"]
[EventCountry "HUN"]
[SourceTitle "playchess.com"]
[Source "ChessBase"]
[SourceQuality "1"]
[TimeControl "40/5400+30:1800+30"]

1. e4 {[%emt 0:00:34]} e6 {[%emt 0:00:36]} 2. d4 {[%emt 0:00:07]} d5 {[%emt 0:00:06]} 3. Nc3 {[%emt 0:00:12]} Nf6 {[%emt 0:00:18]} 4. e5 {[%emt 0:00:13]} Nfd7 {[%emt 0:00:12]} 5. Nce2 {[%emt 0:00:11]} c5 {[%emt 0:00:34]} 6. c3 {[%emt 0:00:16]} Nc6 {[%emt 0:00:44]} 7. f4 {[%emt 0:00:24]} Qb6 {[%emt 0:01:42]} 8. Nf3 {[%emt 0:03:04]} f6 {[%emt 0:01:29]} 9. g3 {[%emt 0:07:25]} Be7 {[%emt 0:04:44]} 10. Bh3 {[%emt 0:02:41]} Nf8 {[%emt 0:04:51]} 11. O-O {[%emt 0:07:33]} cxd4 {[%emt 0:02:25]} 12. cxd4 {[%emt 0:01:44]} Ng6 13. Kh1 {[%emt 0:04:43]} Bd7 {[%emt 0:16:17]} 14. a3 {[%emt 0:06:47]} a5 {[%emt 0:04:52]} 15. g4 {[%emt 0:09:04]} h5 {[%emt 0:06:44]} 16. Qd3 {[%emt 0:09:57]} Nf8 {[%emt 0:03:15]} 17. gxh5 {[%emt 0:04:21]} Rxh5 {[%emt 0:02:21]} 18. Bg4 {[%emt 0:02:46]} Rh8 {[%emt 0:01:05]} 19. f5 {[%emt 0:05:10]} exf5 {[%emt 0:08:06]} 20. Bxf5 {[%emt 0:02:10]} Bxf5 {[%emt 0:03:51]} 21. Qxf5 {[%emt 0:00:25]} g6 {[%emt 0:00:47]} 22. Qd3 {[%emt 0:01:15]} O-O-O {[%emt 0:08:00]} 23. Bd2 {[%emt 0:05:57]} fxe5 {[%emt 0:04:33]} 24. Nxe5 {[%emt 0:01:59]} Nxe5 {[%emt 0:02:10]} 25. dxe5 {[%emt 0:00:30]} Kb8 {[%emt 0:00:51]} 26. b4 {[%emt 0:06:00]} g5 {[%emt 0:05:05]} 27. bxa5 {[%emt 0:04:03]} Qh6 {[%emt 0:01:47]} 28. Rf2 {[%emt 0:03:40]} Nd7 {[%emt 0:02:51]} 29. Rb1 {[%emt 0:03:02]} Qh4 {[%emt 0:03:41]} 30. Rg2 {[%emt 0:04:38]} Nc5 {[%emt 0:01:57]} 31. Qb5 {[%emt 0:02:26]} Qc4 {[%emt 0:04:18]} 32. Qxc4 {[%emt 0:01:28]} dxc4 {[%emt 0:00:03]} 33. Bxg5 {[%emt 0:00:45]} Bxg5 {[%emt 0:00:14]} 34. Rxg5 {[%emt 0:00:07]} Rd2 {[%emt 0:00:04]} 35. Rg2 {[%emt 0:00:15]} Re8 {[%emt 0:01:14]} 36. Ng3 {[%emt 0:01:20]} Rd3 {[%emt 0:01:11]} 37. Rc1 {[%emt 0:00:39]} Rxe5 {[%emt 0:01:29]} 38. Rxc4 {[%emt 0:00:15]} Rxa3 {[%emt 0:00:13]} 39. Re2 {[%emt 0:00:53]} Rd5 {[%emt 0:01:04]} 40. h4 {[%emt 0:00:00]} Rxg3 {[%emt 0:00:00]} 41. Rec2 {[%emt 0:01:10]} Ne6 {[%emt 0:02:07]} 42. Rc8+ {[%emt 0:00:32]} Ka7 {[%emt 0:00:08]} 43. Kh2 {[%emt 0:00:37]} Ra3 {[%emt 0:01:46]} 44. R2c3 {[%emt 0:01:26]} Raxa5 {[%emt 0:02:00]} 45. Kg3 {[%emt 0:01:00]} Nc5 {[%emt 0:04:37]} 0-1

[Event "Hungarian Youth-ch U14 2022"]
[Site "Eger"]
[Date "2022.07.31"]
[Round "9.1"]
[White "Szakmary, Domonkos"]
[Black "Szegedy, Matyas"]
[Result "0-1"]
[ECO "B43"]
[WhiteElo "1967"]
[BlackElo "2152"]
[Annotator "RC"]
[PlyCount "84"]
[EventDate "2022.07.21"]
[EventType "tourn"]
[EventCountry "HUN"]
[SourceTitle "playchess.com"]
[Source "ChessBase"]
[SourceQuality "1"]
[TimeControl "40/5400+30:1800+30"]

1. e4 {[%emt 0:00:32]} c5 {[%emt 0:00:40]} 2. Nf3 {[%emt 0:00:10]} e6 {[%emt 0:00:13]} 3. d4 {[%emt 0:00:05]} cxd4 {[%emt 0:00:08]} 4. Nxd4 {[%emt 0:00:04]} a6 {[%emt 0:00:08]} 5. Nc3 {[%emt 0:00:05]} Qc7 {[%emt 0:00:05]} 6. Qf3 {[%emt 0:00:05]} d6 {[%emt 0:00:13]} 7. Be3 {[%emt 0:00:31]} Nd7 {[%emt 0:00:30]} 8. Qg3 {[%emt 0:00:13]} b5 {[%emt 0:00:37]} 9. Bd3 {[%emt 0:00:47]} Ngf6 {[%emt 0:01:25]} 10. f3 {[%emt 0:02:18]} h5 {[%emt 0:06:34]} 11. O-O-O {[%emt 0:02:17]} e5 {[%emt 0:07:05]} 12. Nb3 {[%emt 0:03:19]} Bb7 {[%emt 0:01:25]} 13. Rhe1 {[%emt 0:19:25]} Rc8 {[%emt 0:08:19]} 14. Kb1 {[%emt 0:36:15]} Be7 {[%emt 0:04:38]} 15. Rd2 {[%emt 0:00:00]} Kf8 {[%emt 0:12:16]} 16. Qh3 {[%emt 0:00:00]} b4 {[%emt 0:18:53]} 17. Nd5 {[%emt 0:00:00]} Nxd5 {[%emt 0:00:44]} 18. exd5 {[%emt 0:00:00]} Nf6 {[%emt 0:00:03]} 19. Bf5 {[%emt 0:00:00]} Rd8 {[%emt 0:00:11]} 20. Red1 {[%emt 0:00:00]} g6 {[%emt 0:01:48]} 21. Be4 {[%emt 0:00:00]} Kg7 {[%emt 0:04:03]} 22. Qg3 {[%emt 0:04:35]} a5 {[%emt 0:10:17]} 23. Qf2 {[%emt 0:03:32]} Nd7 {[%emt 0:00:14]} 24. f4 {[%emt 0:05:34]} a4 {[%emt 0:04:43]} 25. Nc1 {[%emt 0:00:36]} f5 {[%emt 0:06:18]} 26. Bf3 {[%emt 0:02:31]} e4 {[%emt 0:02:38]} 27. Be2 {[%emt 0:00:04]} Ra8 {[%emt 0:00:24]} 28. Bd4+ {[%emt 0:00:32]} Bf6 {[%emt 0:00:07]} 29. Bxf6+ {[%emt 0:00:59]} Nxf6 {[%emt 0:00:05]} 30. Qd4 {[%emt 0:00:44]} Bxd5 {[%emt 0:02:11]} 31. Qxb4 {[%emt 0:01:08]} Rhb8 {[%emt 0:00:07]} 32. Qa3 {[%emt 0:00:44]} Ra5 {[%emt 0:00:16]} 33. c4 {[%emt 0:05:48]} Bxc4 {[%emt 0:02:19]} 34. Rxd6 {[%emt 0:01:23]} Bd5 {[%emt 0:02:35]} 35. Ba6 {[%emt 0:05:36]} Rc5 {[%emt 0:00:43]} 36. Rxf6 {[%emt 0:01:30]} Kxf6 {[%emt 0:00:06]} 37. Qxa4 {[%emt 0:00:04]} Qb6 {[%emt 0:02:10]} 38. Qd4+ {[%emt 0:00:06]} Kf7 {[%emt 0:00:03]} 39. Nb3 {[%emt 0:02:13]} Bxb3 {[%emt 0:00:35]} 40. Qd7+ {[%emt 0:00:00]} Kg8 {[%emt 0:00:00]} 41. axb3 {[%emt 0:00:23]} Qxb3 {[%emt 0:07:36]} 42. Qd4 {[%emt 0:03:57]} Qc2+ {[%emt 0:01:04]} 0-1

[Event "Hungarian Youth-ch U14 2022"]
[Site "Eger"]
[Date "2022.07.31"]
[Round "9.2"]
[White "Turcsanyi, Vince Gergo"]
[Black "Kolimar, Kristof Pal"]
[Result "1/2-1/2"]
[ECO "B42"]
[WhiteElo "2117"]
[BlackElo "2160"]
[Annotator "RC"]
[PlyCount "29"]
[EventDate "2022.07.21"]
[EventType "tourn"]
[EventCountry "HUN"]
[SourceTitle "playchess.com"]
[Source "ChessBase"]
[SourceQuality "1"]
[TimeControl "40/5400+30:1800+30"]

1. e4 {[%emt 0:00:33]} c5 {[%emt 0:00:34]} 2. Nf3 {[%emt 0:00:13]} e6 {[%emt 0:00:05]} 3. d4 {[%emt 0:00:15]} cxd4 {[%emt 0:00:05]} 4. Nxd4 {[%emt 0:00:09]} a6 {[%emt 0:00:04]} 5. Bd3 {[%emt 0:00:18]} Bc5 {[%emt 0:00:23]} 6. Nb3 {[%emt 0:01:18]} Ba7 {[%emt 0:00:05]} 7. Qe2 {[%emt 0:03:34]} d6 {[%emt 0:00:31]} 8. Be3 {[%emt 0:12:01]} Nc6 {[%emt 0:00:29]} 9. N1d2 {[%emt 0:01:54]} Nf6 {[%emt 0:03:15]} 10. Bxa7 {[%emt 0:08:19]} Rxa7 {[%emt 0:00:06]} 11. O-O-O {[%emt 0:01:02]} e5 {[%emt 0:01:56]} 12. h3 {[%emt 0:09:36]} O-O {[%emt 0:06:14]} 13. g3 {[%emt 0:03:14]} b5 {[%emt 0:06:05]} 14. f4 {[%emt 0:10:46]} Qb6 {[%emt 0:08:10]} 15. Kb1 {[%emt 0:05:51]} 1/2-1/2

[Event "Hungarian Youth-ch U14 2022"]
[Site "Eger"]
[Date "2022.07.31"]
[Round "9.3"]
[White "Matyassy, Lazar"]
[Black "Gergely, Daniel"]
[Result "1/2-1/2"]
[ECO "B36"]
[WhiteElo "2132"]
[BlackElo "2053"]
[Annotator "NA RC"]
[PlyCount "43"]
[EventDate "2022.07.21"]
[EventType "tourn"]
[EventCountry "HUN"]
[SourceTitle "playchess.com"]
[Source "ChessBase"]
[SourceQuality "1"]
[TimeControl "40/5400+30:1800+30"]

1. e4 {[%emt 0:00:44]} c5 {[%emt 0:00:37]} 2. Nf3 {[%emt 0:00:07]} Nc6 {[%emt 0:00:06]} 3. d4 {[%emt 0:00:09]} cxd4 {[%emt 0:00:06]} 4. Nxd4 {[%emt 0:00:06]} g6 {[%emt 0:00:07]} 5. c4 {[%emt 0:00:08]} Nf6 {[%emt 0:00:10]} 6. Nc3 {[%emt 0:00:13]} d6 {[%emt 0:00:05]} 7. Be2 {[%emt 0:02:12]} Bg7 {[%emt 0:00:37]} 8. Be3 {[%emt 0:00:23]} O-O {[%emt 0:00:14]} 9. f3 {[%emt 0:00:23]} Bd7 {[%emt 0:00:47]} 10. Qd2 {[%emt 0:00:27]} Nxd4 {[%emt 0:00:21]} 11. Bxd4 {[%emt 0:00:08]} a5 {[%emt 0:00:06]} 12. g4 {[%emt 0:05:07]} a4 {[%emt 0:10:12]} 13. O-O-O {[%emt 0:16:32]} Qa5 {[%emt 0:08:29]} 14. h4 {[%emt 0:04:30]} Rfc8 {[%emt 0:16:02]} (14... Be6 $1 $11) 15. g5 {[%emt 0:29:37]} Nh5 {[%emt 0:11:35]} 16. Bxg7 {[%emt 0:14:25]} (16. Nd5 $14 {is superior.} Qd8 17. Bxg7 Nxg7 18. Qe3) 16... Nxg7 {[%emt 0:02:14]} (16... Kxg7 $11 17. Qd4+ Kg8) 17. Nd5 $14 {[%emt 0:00:57]} Re8 {[%emt 0:07:36]} 18. Qe3 {[%emt 0:09:13]} Be6 {[%emt 0:16:20]} 19. h5 {[%emt 0:02:12]} Bxd5 {[%emt 0:07:07]} 20. Rxd5 {[%emt 0:03:14]} Qa7 {[%emt 0:00:20]} 21. Qxa7 {[%emt 0:06:23]} Rxa7 {[%emt 0:00:10]} 22. f4 {[%emt 0:01:25]} 1/2-1/2

[Event "Hungarian Youth-ch U14 2022"]
[Site "Eger"]
[Date "2022.07.31"]
[Round "9.4"]
[White "Csernyik, Mark"]
[Black "Megyaszai, Balazs"]
[Result "1/2-1/2"]
[ECO "B90"]
[WhiteElo "2022"]
[BlackElo "1919"]
[Annotator "NA RC"]
[PlyCount "67"]
[EventDate "2022.07.21"]
[EventType "tourn"]
[EventCountry "HUN"]
[SourceTitle "playchess.com"]
[Source "ChessBase"]
[SourceQuality "1"]
[TimeControl "40/5400+30:1800+30"]

1. e4 {[%emt 0:00:35]} c5 {[%emt 0:00:43]} 2. Nf3 {[%emt 0:00:26]} d6 {[%emt 0:00:20]} 3. d4 {[%emt 0:00:14]} cxd4 {[%emt 0:00:27]} 4. Nxd4 {[%emt 0:00:24]} Nf6 {[%emt 0:00:28]} 5. Nc3 {[%emt 0:00:16]} a6 {[%emt 0:00:09]} 6. f3 {[%emt 0:00:09]} e5 {[%emt 0:00:22]} 7. Nb3 {[%emt 0:00:22]} Be6 {[%emt 0:00:46]} 8. Be3 {[%emt 0:00:41]} h5 {[%emt 0:00:47]} 9. Qd2 {[%emt 0:00:35]} Nbd7 {[%emt 0:00:31]} 10. Nd5 {[%emt 0:00:32] 10.Nd5 scores better than 10.0-0-0.} Bxd5 {[%emt 0:01:34]} 11. exd5 {[%emt 0:00:08]} g6 12. Be2 {[%emt 0:00:43]} Bg7 {[%emt 0:05:09]} 13. O-O {[%emt 0:00:18]} O-O {[%emt 0:02:11]} 14. c4 {[%emt 0:01:57]} Rc8 {[%emt 0:24:56] [#]} (14... b6 $11 {remains equal.}) 15. Na5 $1 {[%emt 0:06:31]} Qc7 {[%emt 0:06:59] [#]} 16. b4 $1 {[%emt 0:06:38]} b6 {[%emt 0:24:10] [#]} 17. Nc6 $146 {[%emt 0:02:52]} ({Predecessor:} 17. Nb3 h4 18. Rac1 Qb7 19. a4 Rb8 20. Rfd1 Nh5 21. Rb1 h3 22. a5 Nf4 23. g3 Nxe2+ 24. Qxe2 {½-½ (67) Wang,H (2484)-Chen,F (2354) Jinan 2005}) 17... Kh7 {[%emt 0:00:47]} (17... Rfe8 $16 {was worth a try.}) 18. Rac1 {[%emt 0:01:37]} Qb7 {[%emt 0:01:58]} 19. a4 {[%emt 0:04:39]} Nb8 {[%emt 0:01:37]} 20. Nxb8 {[%emt 0:02:11]} (20. b5 $16) 20... Qxb8 {[%emt 0:01:52]} 21. g4 {[%emt 0:03:40]} Qb7 {[%emt 0:04:40] [#]} 22. h3 {[%emt 0:04:29]} (22. g5 $142 $1 {[%cal Rg5f6]} Nd7 23. a5) 22... Rfe8 {[%emt 0:02:07]} 23. Bg5 {[%emt 0:01:51]} (23. Qe1 $14) 23... hxg4 {[%emt 0:02:48]} 24. hxg4 {[%emt 0:01:05]} Kg8 {[%emt 0:01:25]} 25. Kg2 $11 {[%emt 0:02:19]} Nh7 {[%emt 0:03:36]} 26. Bh6 {[%emt 0:03:11]} Bh8 {[%emt 0:01:48]} 27. Bd3 {[%emt 0:01:27]} Qd7 {[%emt 0:02:29]} 28. Qc2 {[%emt 0:04:21]} Nf6 {[%emt 0:01:23]} 29. Rce1 {[%emt 0:05:14]} Nxg4 {[%emt 0:01:10]} 30. fxg4 {[%emt 0:00:47]} Qxg4+ {[%emt 0:00:12]} 31. Kh1 {[%emt 0:00:26]} Qh3+ {[%emt 0:01:03]} 32. Kg1 {[%emt 0:00:43]} Qxh6 {[%emt 0:01:13]} 33. Re2 {[%emt 0:00:29]} e4 {[%emt 0:01:37]} 34. Rxe4 1/2-1/2

[Event "Hungarian Youth-ch U14 2022"]
[Site "Eger"]
[Date "2022.07.31"]
[Round "9.5"]
[White "Giang, Tran Nam"]
[Black "Bodrogi, Bendeguz"]
[Result "1/2-1/2"]
[ECO "B32"]
[WhiteElo "2144"]
[BlackElo "2170"]
[Annotator "RC"]
[PlyCount "32"]
[EventDate "2022.07.21"]
[EventType "tourn"]
[EventCountry "HUN"]
[SourceTitle "playchess.com"]
[Source "ChessBase"]
[SourceQuality "1"]
[TimeControl "40/5400+30:1800+30"]

1. e4 {[%emt 0:00:39]} c5 {[%emt 0:00:38]} 2. Nf3 {[%emt 0:00:11]} Nc6 {[%emt 0:00:10]} 3. d4 {[%emt 0:00:09]} cxd4 {[%emt 0:00:34]} 4. Nxd4 {[%emt 0:00:13]} e5 {[%emt 0:00:07]} 5. Nb5 {[%emt 0:00:06]} d6 {[%emt 0:00:22]} 6. N1c3 {[%emt 0:00:42]} a6 {[%emt 0:00:08]} 7. Na3 {[%emt 0:00:07]} Be7 {[%emt 0:00:36]} 8. Nc4 {[%emt 0:01:07]} b5 {[%emt 0:00:19]} 9. Ne3 {[%emt 0:00:21]} Nf6 {[%emt 0:00:07]} 10. g3 {[%emt 0:00:33]} b4 {[%emt 0:00:35]} 11. Ncd5 {[%emt 0:00:17]} Nxe4 {[%emt 0:00:07]} 12. Bg2 {[%emt 0:00:06]} f5 {[%emt 0:00:18]} 13. g4 {[%emt 0:00:12]} Bh4 {[%emt 0:00:09]} 14. O-O {[%emt 0:00:56]} Bxf2+ {[%emt 0:00:22]} 15. Rxf2 {[%emt 0:00:07]} Nxf2 {[%emt 0:00:04]} 16. Kxf2 {[%emt 0:00:04]} fxg4 {[%emt 0:00:17]} 1/2-1/2

[Event "Hungarian Youth-ch U14 2022"]
[Site "Eger"]
[Date "2022.07.31"]
[Round "9.6"]
[White "Beznicza, Mira"]
[Black "Lazsadi, Kerka Lilla"]
[Result "1/2-1/2"]
[ECO "B07"]
[WhiteElo "1608"]
[BlackElo "1674"]
[Annotator "NA RC"]
[PlyCount "43"]
[EventDate "2022.07.21"]
[EventType "tourn"]
[EventCountry "HUN"]
[SourceTitle "playchess.com"]
[Source "ChessBase"]
[SourceQuality "1"]
[TimeControl "40/5400+30:1800+30"]

1. e4 {[%emt 0:00:33]} d6 {[%emt 0:00:37]} 2. d4 {[%emt 0:00:16]} Nf6 {[%emt 0:00:06]} 3. Nc3 {[%emt 0:00:50]} c6 {[%emt 0:00:09]} 4. Be3 {[%emt 0:01:14]} Qc7 {[%emt 0:01:00]} 5. f3 {[%emt 0:01:57]} e5 {[%emt 0:00:59]} 6. Bc4 {[%emt 0:04:11]} Nbd7 {[%emt 0:02:50]} 7. Nge2 {[%emt 0:02:11]} b5 {[%emt 0:04:05]} 8. Bd3 {[%emt 0:01:00]} a6 {[%emt 0:01:38]} 9. g4 {[%emt 0:03:01]} Be7 {[%emt 0:02:47]} 10. h4 {[%emt 0:01:29]} b4 {[%emt 0:14:02]} 11. Nb1 {[%emt 0:01:10]} exd4 {[%emt 0:02:23]} 12. Nxd4 {[%emt 0:02:37]} Ne5 {[%emt 0:01:11]} 13. Be2 {[%emt 0:04:48]} c5 {[%emt 0:02:58]} 14. Nf5 {[%emt 0:02:01]} Bxf5 {[%emt 0:00:54]} 15. exf5 {[%emt 0:00:12]} Qb7 {[%emt 0:02:03]} 16. Rg1 {[%emt 0:04:10]} Nd5 {[%emt 0:01:20]} 17. Bf2 {[%emt 0:02:28]} Nf4 {[%emt 0:00:56]} 18. Nd2 {[%emt 0:01:37]} Nh3 {[%emt 0:00:43]} 19. Rh1 {[%emt 0:00:21]} Nf4 {[%emt 0:02:35]} 20. Rg1 {[%emt 0:01:05]} Nh3 {[%emt 0:00:39]} 21. Rh1 {[%emt 0:00:08]} Nf4 {[%emt 0:00:08]} 22. Rg1 {[%emt 0:00:06]} 1/2-1/2

[Event "Hungarian Youth-ch U14 2022"]
[Site "Eger"]
[Date "2022.07.31"]
[Round "9.7"]
[White "Eros, Vivien"]
[Black "Horvath, Greta"]
[Result "1-0"]
[ECO "A22"]
[WhiteElo "1599"]
[BlackElo "1346"]
[Annotator "NA RC"]
[PlyCount "97"]
[EventDate "2022.07.21"]
[EventType "tourn"]
[EventCountry "HUN"]
[SourceTitle "playchess.com"]
[Source "ChessBase"]
[SourceQuality "1"]
[TimeControl "40/5400+30:1800+30"]

1. c4 {[%emt 0:00:31]} e5 {[%emt 0:00:40]} 2. Nc3 {[%emt 0:00:04]} Nf6 {[%emt 0:01:17]} 3. g3 {[%emt 0:00:10]} d5 {[%emt 0:04:56]} 4. cxd5 {[%emt 0:00:26]} Nxd5 {[%emt 0:01:11]} 5. Nf3 {[%emt 0:01:57]} Nc6 {[%emt 0:01:20]} 6. Bg2 {[%emt 0:00:24]} Be6 {[%emt 0:01:28]} 7. O-O {[%emt 0:02:24]} Be7 {[%emt 0:09:49]} 8. Qa4 {[%emt 0:02:14]} O-O {[%emt 0:03:02]} 9. d3 {[%emt 0:01:14]} Nb6 {[%emt 0:06:07]} 10. Qc2 {[%emt 0:01:13]} f6 {[%emt 0:08:11]} 11. Bd2 {[%emt 0:02:06]} Nb4 {[%emt 0:05:53]} 12. Qb1 {[%emt 0:02:38]} Qd7 {[%emt 0:02:04]} 13. a3 {[%emt 0:07:41]} Nc6 {[%emt 0:02:58]} 14. b4 {[%emt 0:06:14]} Nd4 {[%emt 0:07:30]} 15. Nxd4 {[%emt 0:00:39]} exd4 {[%emt 0:00:22]} 16. Ne4 {[%emt 0:00:42]} Nd5 {[%emt 0:05:46]} 17. Qb2 {[%emt 0:03:16]} b6 {[%emt 0:01:17]} 18. Rac1 {[%emt 0:08:11]} f5 {[%emt 0:03:13]} 19. Ng5 {[%emt 0:00:33]} Bxg5 {[%emt 0:01:15]} 20. Bxg5 {[%emt 0:00:08]} h6 {[%emt 0:00:58]} 21. Bd2 {[%emt 0:00:13]} Rad8 {[%emt 0:03:47]} 22. Qxd4 {[%emt 0:00:41]} Qf7 {[%emt 0:04:40]} 23. Qb2 {[%emt 0:00:57]} Nf6 {[%emt 0:02:57]} 24. Bf4 {[%emt 0:01:15]} Rd7 {[%emt 0:01:55]} 25. Rc2 {[%emt 0:04:12]} Bd5 {[%emt 0:02:33]} 26. Bxd5 {[%emt 0:01:27]} Nxd5 {[%emt 0:00:34]} 27. Bd2 {[%emt 0:03:11]} Rc8 {[%emt 0:05:37]} 28. Rfc1 {[%emt 0:04:21]} f4 {[%emt 0:02:34]} 29. Qa2 {[%emt 0:12:55]} f3 {[%emt 0:02:45]} 30. e4 {[%emt 0:00:49]} Nf6 {[%emt 0:05:38]} 31. Qxf7+ {[%emt 0:00:10]} Kxf7 {[%emt 0:00:10]} 32. Rc3 {[%emt 0:07:09]} Nxe4 {[%emt 0:02:18]} 33. dxe4 {[%emt 0:00:07]} Rxd2 {[%emt 0:00:12]} 34. Rxf3+ {[%emt 0:00:05]} Kg8 {[%emt 0:00:30]} 35. Rfc3 {[%emt 0:00:13]} Rd7 {[%emt 0:00:24]} 36. e5 {[%emt 0:00:29]} Re7 {[%emt 0:00:20]} 37. f4 {[%emt 0:00:07]} Kf7 {[%emt 0:00:15]} 38. Kf2 {[%emt 0:00:18]} Rd7 {[%emt 0:00:25]} 39. Ke3 {[%emt 0:00:15]} Ke6 {[%emt 0:00:41]} 40. Ke4 {[%emt 0:00:00]} Ke7 {[%emt 0:00:00]} 41. f5 {[%emt 0:01:51]} Kf8 {[%emt 0:01:13]} 42. e6 {[%emt 0:00:23]} Re7 {[%emt 0:00:16]} 43. Ke5 {[%emt 0:00:24]} Ke8 {[%emt 0:00:34]} 44. g4 {[%emt 0:00:20]} Kf8 {[%emt 0:00:10]} 45. h4 {[%emt 0:00:06]} a6 {[%emt 0:00:25]} 46. g5 {[%emt 0:00:05]} h5 {[%emt 0:00:07]} 47. f6 {[%emt 0:00:28]} gxf6+ {[%emt 0:00:20]} 48. gxf6 {[%emt 0:00:27]} Rh7 {[%emt 0:00:12]} 49. e7+ {[%emt 0:00:14]} 1-0